bitfinex-derivatives/quotes_ETHF0:USTF0_20250902
["timestamp","ask_amount","ask_price","bid_price","bid_amount"]
[1756797346777,0.5014,4396.5,4396.4,0.233]
[1756797347088,0.6939,4396.5,4396.4,0.233]
[1756797347280,0.8118,4396.5,4396.4,0.233]
[1756797348393,1.60147166,4396.5,4396.4,0.233]
[1756797348579,0.90757166,4396.5,4395.9,3.2078]
[1756797348785,1.60147166,4396.0,4395.9,3.2078]
[1756797350687,1.60147166,4396.0,4395.9,3.4408]
[1756797351790,1.60147166,4396.0,4395.9,3.2078]
[1756797351994,0.1179,4395.5,4395.4,3.2078]
[1756797352189,1.81696507,4395.5,4395.4,3.4408]
[1756797352491,1.81696507,4395.5,4395.4,44.2408]
[1756797353394,0.21549341,4395.5,4395.4,45.03047166]
[1756797355490,0.21541666,4395.5,4395.4,44.2408]
[1756797356591,0.21541666,4395.5,4395.4,48.2408]
[1756797356993,0.3105,4396.9,4395.9,0.40942]
[1756797357197,3.5166,4397.0,4396.4,3.2078]
[1756797357389,0.1909,4396.9,4396.5,0.233]
[1756797357692,0.3105,4396.7,4396.5,0.233]
[1756797357883,3.3257,4397.0,4396.5,0.233]
[1756797358085,0.3105,4396.8,4396.6,40.8]
[1756797358289,0.3105,4396.8,4396.7,0.233]
[1756797359397,0.5014,4397.4,4396.7,0.233]
[1756797360393,0.3105,4397.1,4396.9,3.2078]
[1756797360698,0.3105,4397.1,4397.0,0.233]
[1756797360897,3.3987,4397.6,4397.0,0.233]
[1756797361290,0.98383266,4397.8,4397.0,0.233]
[1756797361291,0.5014,4397.7,4397.0,0.233]
[1756797362197,0.3105,4397.6,4397.0,1.21683266]
[1756797362400,0.3105,4397.6,4397.5,3.2078]
[1756797362599,0.3105,4397.6,4397.5,3.4408]
[1756797363096,0.3105,4397.6,4397.5,44.2408]
[1756797364099,1.17473266,4398.3,4397.5,44.65007]
[1756797364301,0.3105,4398.2,4397.5,44.2408]
[1756797364600,0.5014,4398.2,4397.6,0.0506]
[1756797364797,1.17473266,4398.3,4397.7,0.233]
[1756797365290,0.5014,4398.2,4397.7,0.233]
[1756797365491,1.17473266,4398.3,4397.7,0.233]
[1756797365693,0.3105,4398.1,4397.7,0.233]
[1756797365894,0.1909,4398.2,4397.7,0.233]
[1756797366096,1.17473266,4398.3,4397.7,0.233]
[1756797366394,0.3105,4398.2,4397.7,0.233]
[1756797366591,0.3105,4398.1,4398.0,3.2078]
[1756797366800,0.3105,4398.1,4398.0,3.4408]
[1756797367897,0.3105,4398.4,4398.0,3.62762675]
[1756797368898,0.3105,4398.4,4398.1,40.8]
[1756797369093,1.17473266,4398.8,4398.2,0.233]
[1756797369302,0.1909,4398.7,4398.5,3.2078]
[1756797369492,0.3834,4398.7,4398.6,0.233]
[1756797369897,0.6939,4398.7,4398.6,0.233]
[1756797370400,0.6939,4398.2,4398.1,40.8]
[1756797370601,1.67773266,4398.2,4398.1,41.033]
[1756797370794,0.6939,4398.2,4398.1,41.033]
[1756797371003,1.48523266,4398.2,4398.1,41.033]
[1756797372007,0.5014,4398.2,4398.1,41.033]
[1756797372300,1.48523266,4398.2,4398.1,41.033]
[1756797373504,1.68903266,4398.2,4398.1,0.233]
[1756797377103,0.3023,4398.8,4398.1,0.236]
[1756797377305,0.5045,4398.6,4398.5,3.2108]
[1756797377508,0.7083,4398.6,4398.5,3.4408]
[1756797377903,0.7083,4398.6,4398.5,0.233]
[1756797379600,0.7083,4398.6,4398.5,0.2345]
[1756797380014,0.7083,4398.6,4398.5,0.233]
[1756797380704,1.69213266,4398.6,4398.5,0.233]
[1756797385511,1.88706198,4398.6,4398.5,0.233]
[1756797386506,1.88723009,4398.6,4398.5,0.233]
[1756797386916,1.69213266,4398.6,4398.5,0.233]
[1756797387114,1.88724788,4398.6,4398.5,0.233]
[1756797388720,1.88724788,4398.6,4398.1,0.233]
[1756797388721,0.406,4398.2,4398.1,0.233]
[1756797388914,0.90341522,4398.2,4398.1,0.236]
[1756797389511,0.90341522,4398.2,4398.1,0.2345]
[1756797391022,0.4167,4398.0,4397.9,44.0078]
[1756797391214,0.61181522,4398.0,4397.9,44.2408]
[1756797392726,0.49741522,4398.0,4397.9,44.2408]
[1756797392925,0.49741522,4398.0,4397.9,44.2417]
[1756797395219,3.3257,4399.0,4398.2,0.0039]
[1756797395522,0.9157941,4398.9,4398.8,3.2108]
[1756797395836,0.9157941,4398.9,4398.8,3.4438]
[1756797397417,0.3023,4398.9,4398.8,3.4447]
[1756797397624,0.3023,4399.4,4399.3,0.003]
[1756797397828,0.48876312,4399.4,4399.3,4.42763266]
[1756797398128,0.3023,4399.4,4399.3,45.22763266]
[1756797401925,0.3023,4399.4,4399.3,44.2438]
[1756797402324,0.3023,4399.4,4399.1,0.0009]
[1756797402325,0.8035,4399.0,4398.9,0.0618]
[1756797402520,1.97352546,4399.0,4398.9,0.0618]
[1756797402920,0.9896928,4399.0,4398.9,0.0618]
[1756797404129,0.9896928,4399.0,4398.8,0.233]
[1756797404325,0.1861928,4398.9,4398.8,0.233]
[1756797404629,0.8759928,4398.9,4398.8,0.233]
[1756797406929,0.2881,4398.9,4398.8,4.42463266]
[1756797407131,0.4843,4398.9,4398.8,4.42463266]
[1756797408126,0.4843,4398.9,4398.8,45.22463266]
[1756797409333,0.4843,4398.9,4398.8,44.2408]
[1756797409837,0.2881,4398.9,4398.8,44.2408]
[1756797410728,1.85977577,4398.9,4398.8,3.4408]
[1756797411326,0.87594311,4398.9,4398.8,3.4408]
[1756797411528,0.6898,4398.9,4398.8,3.4408]
[1756797412231,0.6898,4398.9,4398.8,0.233]
[1756797416436,0.87603621,4398.9,4398.8,0.233]
[1756797417430,1.66456615,4398.9,4398.8,0.233]
[1756797417838,1.66456615,4398.9,4398.7,0.233]
[1756797418143,1.66456615,4398.8,4398.7,0.233]
[1756797418432,1.66462962,4398.8,4398.7,0.233]
[1756797419240,1.47832994,4398.8,4398.7,0.233]
[1756797419439,1.66464443,4398.8,4398.7,0.233]
[1756797421835,0.87611449,4398.8,4398.7,0.6293]
[1756797422040,0.2881,4398.8,4398.7,1.65062994]
[1756797422340,0.2881,4399.4,4398.7,1.65062994]
[1756797422635,0.6898,4399.4,4399.3,0.1947]
[1756797423042,0.6898,4399.4,4399.2,0.233]
[1756797423241,0.6898,4399.4,4399.3,0.1947]
[1756797425844,0.6898,4399.4,4399.2,0.233]
[1756797427339,0.1137,4399.0,4398.9,40.8]
[1756797427544,1.19032994,4399.0,4398.9,40.8]
[1756797428342,0.4017,4398.7,4398.6,0.4277]
[1756797428537,0.6898,4398.7,4398.6,0.4277]
[1756797428842,0.6898,4398.7,4398.6,41.2277]
[1756797431241,0.2881,4398.7,4398.6,42.31762994]
[1756797434452,5.344,4399.6,4399.5,0.1968]
[1756797434740,5.344,4399.6,4399.5,1.41292994]
[1756797434939,5.6407,4399.6,4399.5,1.71432994]
[1756797435140,5.8486,4399.6,4399.5,1.71432994]
[1756797436142,6.0499,4399.6,4399.5,0.6244]
[1756797436443,6.83842994,4399.6,4399.5,0.4298]
[1756797436638,6.83842994,4399.6,4398.6,40.8]
[1756797436639,0.2967,4399.4,4398.8,0.3014]
[1756797436843,0.7059,4398.9,4398.8,0.3914]
[1756797437043,0.7059,4398.9,4398.8,0.9258]
[1756797437343,0.5046,4398.9,4398.8,0.9258]
[1756797437847,0.7059,4398.9,4398.8,0.6244]
[1756797438139,0.116,4399.5,4399.3,0.6928]
[1756797438140,0.5046,4399.4,4399.3,0.6928]
[1756797438346,0.7059,4399.4,4399.3,0.233]
[1756797439146,0.7059,4399.4,4399.3,0.4298]
[1756797442249,0.4092,4399.4,4398.9,0.78852994]
[1756797442445,0.4092,4399.1,4398.7,3.2078]
[1756797442748,0.7059,4398.8,4398.7,3.4046]
[1756797442949,0.7059,4398.8,4398.7,3.6376]
[1756797443945,0.7059,4398.8,4398.7,3.8322]
[1756797444553,0.5252,4399.5,4398.8,0.3014]
[1756797444748,0.5252,4399.5,4398.8,0.78852994]
[1756797444945,0.5252,4399.5,4399.4,0.1968]
[1756797445143,0.8219,4399.5,4399.3,0.233]
[1756797445347,0.78852994,4399.4,4399.3,0.233]
[1756797445644,1.49442994,4399.4,4399.3,0.233]
[1756797448056,1.19772994,4399.4,4398.7,3.99632994]
[1756797448363,0.7059,4398.9,4398.8,0.4298]
[1756797448654,0.91074595,4398.9,4398.8,0.4298]
[1756797449155,0.7059,4398.9,4398.8,0.4298]
[1756797449358,0.91074593,4398.9,4398.8,0.4298]
[1756797450055,0.50154593,4398.9,4398.8,0.9258]
[1756797450257,0.20484593,4398.9,4398.8,0.9258]
[1756797454459,0.50154593,4398.9,4398.8,0.9258]
[1756797454655,0.70944593,4398.9,4398.8,0.9258]
[1756797456561,0.50154593,4398.9,4398.8,0.9258]
[1756797459865,0.2967,4398.9,4398.8,0.9258]
[1756797460067,0.49942648,4398.9,4398.8,0.9258]
[1756797460857,0.20272648,4398.9,4398.8,0.9258]
[1756797461067,0.2967,4399.8,4398.9,0.3014]
[1756797461369,0.91034193,4399.7,4399.6,0.1968]
[1756797461563,0.91034193,4399.7,4399.6,0.233]
[1756797462365,1.69887187,4399.7,4399.6,0.233]
[1756797462962,0.91034193,4399.7,4399.6,0.233]
[1756797464769,0.91034193,4399.7,4399.6,0.6433]
[1756797465067,0.20274193,4399.7,4399.6,0.9405]
[1756797465469,0.50634193,4399.7,4399.6,0.9405]
[1756797466466,0.3036,4399.7,4399.6,41.7405]
[1756797466671,0.50618888,4399.7,4399.6,41.7405]
[1756797466872,0.20258888,4399.7,4399.6,41.7405]
[1756797467070,0.3036,4400.4,4399.7,0.2972]
[1756797467271,0.3991,4400.1,4400.0,0.99392994]
[1756797467470,0.3991,4400.1,4400.0,1.22692994]
[1756797467471,0.90529002,4400.1,4400.0,1.22692994]
[1756797470672,0.8941677,4400.1,4400.0,1.72902994]
[1756797471177,0.3036,4400.1,4400.0,1.72902994]
[1756797471668,0.3036,4400.9,4400.1,0.2972]
[1756797471869,0.7027,4400.6,4400.5,0.99392994]
[1756797472070,0.89410928,4400.6,4400.5,1.22692994]
[1756797473172,0.89410928,4400.6,4400.5,1.72902994]
[1756797474675,0.89410928,4400.6,4400.5,1.43182994]
[1756797475672,0.89410928,4400.6,4400.5,1.72902994]
[1756797476074,0.7027,4400.6,4400.5,1.72902994]
[1756797476474,0.3036,4400.6,4400.5,1.72902994]
[1756797477178,0.5066,4400.6,4400.5,1.72902994]
[1756797477479,0.7027,4400.6,4400.5,0.6433]
[1756797477775,0.7027,4400.6,4400.5,41.033]
[1756797478077,0.893898,4400.6,4400.5,41.033]
[1756797478269,0.7027,4400.6,4400.5,0.4384]
[1756797478869,0.7027,4400.6,4400.5,0.6433]
[1756797479068,0.7027,4400.6,4400.5,0.9405]
[1756797479673,0.7027,4400.6,4400.5,0.6433]
[1756797480180,0.7027,4400.6,4400.5,0.233]
[1756797482578,0.7027,4400.6,4400.5,0.4384]
[1756797482777,0.7027,4400.6,4400.5,0.9405]
[1756797482980,0.7027,4400.6,4400.5,0.6433]
[1756797483177,0.7027,4400.6,4400.5,0.9405]
[1756797483769,0.5066,4400.6,4400.5,0.9405]
[1756797485276,0.3036,4401.4,4400.5,0.6433]
[1756797485575,0.5066,4400.8,4400.7,1.68916723]
[1756797485780,0.5066,4400.8,4400.7,5.12896723]
[1756797485982,0.5066,4400.8,4400.7,45.92896723]
[1756797486378,0.5066,4400.8,4400.7,44.6501]
[1756797486584,0.69055869,4400.8,4400.7,41.2374]
[1756797490779,0.88684082,4400.8,4400.7,0.4374]
[1756797491380,0.69074082,4400.8,4400.7,0.9388]
[1756797491581,0.69076655,4400.8,4400.7,0.9388]
[1756797493487,0.69076655,4400.8,4400.7,1.92046723]
[1756797494079,0.18416655,4400.8,4400.7,1.92046723]
[1756797494883,0.47946655,4400.8,4400.7,1.92046723]
[1756797495288,0.47946655,4400.8,4400.7,0.9388]
[1756797495289,0.87376655,4400.8,4400.7,0.9388]
[1756797498185,0.87376655,4400.8,4400.7,0.6423]
[1756797498487,0.2953,4400.7,4400.6,3.2078]
[1756797498691,0.87376655,4400.7,4400.6,3.4398]
[1756797498884,0.87376655,4400.7,4400.6,3.6429]
[1756797499090,0.87376655,4400.7,4400.6,44.4429]
[1756797499486,0.87376655,4400.7,4400.6,44.7394]
[1756797501486,0.87413711,4400.7,4400.6,44.7394]
[1756797502085,0.47983711,4400.7,4400.6,44.7394]
[1756797506190,0.18453711,4400.7,4400.6,44.7394]
[1756797509204,0.47983711,4400.7,4400.6,44.7394]
[1756797509401,0.47983711,4400.7,4400.6,44.4429]
[1756797509996,0.47983711,4400.7,4400.6,44.7394]
[1756797510404,0.47983711,4400.7,4400.6,44.4429]
[1756797511801,0.47983711,4400.7,4400.6,44.7394]
[1756797512107,0.2953,4400.7,4400.6,44.7394]
[1756797512293,0.4805569,4400.7,4400.6,44.7394]
[1756797512699,0.8748569,4400.7,4400.6,4.1441]
[1756797513000,0.8748569,4400.7,4400.6,3.8476]
[1756797513202,0.8748569,4400.7,4400.6,44.6476]
[1756797513706,0.8748569,4400.7,4400.6,44.9441]
[1756797513905,0.6687569,4400.7,4400.6,45.92576723]
[1756797514606,0.6687569,4400.7,4400.6,44.9441]
[1756797514806,0.6687569,4400.7,4400.6,45.92576723]
[1756797516295,0.6687569,4400.7,4400.6,45.69376723]
[1756797516501,0.6687569,4400.7,4400.6,45.92576723]
[1756797517507,0.4805569,4400.7,4400.6,45.92576723]
[1756797517709,0.1852569,4400.7,4400.6,45.92576723]
[1756797519204,0.1852569,4400.7,4400.6,44.7121]
[1756797519410,0.66875251,4400.7,4400.6,44.9441]
[1756797520097,0.18525251,4400.7,4400.6,44.9441]
[1756797522912,0.18525217,4400.7,4400.6,44.9441]
[1756797526512,0.49295217,4400.7,4400.6,44.9441]
[1756797527608,0.3077,4400.7,4400.6,44.9441]
[1756797527820,0.49294867,4400.7,4400.6,44.9441]
[1756797528207,0.18524867,4400.7,4400.6,44.9441]
[1756797530122,0.18524755,4400.7,4400.6,44.9441]
[1756797531510,0.49294755,4400.7,4400.6,44.9441]
[1756797532510,0.18524755,4400.7,4400.6,44.9441]
[1756797533112,0.3077,4401.3,4400.6,44.6476]
[1756797533311,0.49294757,4401.2,4401.1,3.9004]
[1756797533518,0.3077,4401.2,4401.1,4.1324]
[1756797533717,0.70104156,4401.2,4401.1,4.1324]
[1756797534510,0.70103988,4401.2,4401.1,5.11406723]
[1756797535215,0.70103988,4401.2,4401.1,1.90626723]
[1756797536124,0.49293988,4401.2,4401.1,5.11406723]
[1756797539319,0.18523988,4401.2,4401.1,5.11406723]
[1756797539511,0.18523988,4401.2,4401.1,4.91975903]
[1756797540512,0.70103988,4401.2,4401.1,4.91975903]
[1756797540715,0.89253988,4401.2,4401.1,4.61815903]
[1756797541121,0.89253988,4401.2,4401.1,0.623]
[1756797541815,0.89253988,4401.2,4401.1,0.391]
[1756797542023,0.89253988,4401.2,4401.1,0.4296]
[1756797542519,0.89253988,4401.2,4401.1,0.9246]
[1756797542824,0.49293988,4401.2,4401.1,0.9246]
[1756797543228,0.52107569,4401.2,4401.1,0.9246]
[1756797543722,0.52106332,4401.2,4401.1,0.9246]
[1756797543914,0.52106332,4401.2,4401.1,4.1324]
[1756797544119,0.21336332,4401.2,4401.1,4.1324]
[1756797548619,0.3077,4401.8,4401.7,0.391]
[1756797548826,0.50478986,4401.8,4401.7,1.71265903]
[1756797549223,0.50478986,4401.8,4401.7,42.51265903]
[1756797550127,0.50478986,4401.8,4401.7,41.032]
[1756797551019,0.50478986,4401.8,4401.7,42.12165903]
[1756797552924,3.3287,4403.0,4402.0,0.7101]
[1756797553223,0.6843,4402.6,4402.5,0.2068]
[1756797553528,0.6843,4402.6,4402.5,0.4388]
[1756797553727,0.88107496,4402.6,4402.5,0.4388]
[1756797554524,0.88100701,4402.6,4402.5,0.4388]
[1756797558427,0.88100701,4402.6,4402.5,0.9421]
[1756797558627,0.67650701,4402.6,4402.5,0.9421]
[1756797560228,0.6843,4402.6,4402.5,0.9421]
[1756797560526,0.88077399,4402.6,4402.5,0.232]
[1756797560829,0.88077399,4402.6,4402.5,0.4388]
[1756797563331,0.88077399,4402.6,4402.5,0.6407]
[1756797564029,0.88077399,4402.6,4402.5,0.9421]
[1756797564230,0.6843,4402.6,4402.5,0.9421]
[1756797564431,0.88076602,4402.6,4402.5,0.9421]
[1756797565333,0.88076602,4402.6,4402.5,0.6407]
[1756797565730,0.88076602,4402.6,4402.5,0.9421]
[1756797565926,0.2905,4402.6,4402.5,0.9421]
[1756797566322,0.4798,4402.6,4402.5,0.9421]
[1756797569625,0.4798,4402.6,4402.5,1.72945903]
[1756797572937,3.2078,4404.0,4403.3,0.4087]
[1756797573138,0.37601658,4403.9,4403.8,0.4087]
[1756797573338,0.37601658,4403.9,4403.8,1.73835903]
[1756797573641,0.1893,4403.9,4403.8,1.73835903]
[1756797574442,3.99515903,4404.6,4403.8,1.73835903]
[1756797574443,0.1893,4404.0,4403.9,0.719]
[1756797574641,0.37592559,4404.0,4403.9,0.719]
[1756797575133,0.37595043,4404.0,4403.9,0.719]
[1756797575334,0.1893,4404.0,4403.9,0.719]
[1756797575943,0.1893,4404.0,4403.9,3.9268]
[1756797576443,0.2905,4404.3,4403.9,3.9268]
[1756797576734,0.37585806,4404.2,4404.1,1.50635903]
[1756797576942,0.66635806,4404.2,4404.1,1.73735903]
[1756797577140,0.87085806,4404.2,4404.1,1.73735903]
[1756797579441,0.58035806,4404.2,4404.1,1.73735903]
[1756797579643,0.58035806,4404.2,4404.1,0.95]
[1756797580041,0.87085806,4404.2,4404.1,0.95]
[1756797580248,0.87082274,4404.2,4404.1,0.95]
[1756797580546,0.87082274,4404.2,4404.1,0.231]
[1756797580937,1.65818177,4404.2,4404.1,0.231]
[1756797581348,5.09788274,4404.2,4404.0,0.231]
[1756797581544,0.1141,4404.5,4404.0,0.231]
[1756797581545,1.87935178,4404.1,4404.0,0.231]
[1756797581747,1.65228177,4404.1,4404.0,0.231]
[1756797581944,1.65228177,4404.1,4403.3,3.2078]
[1756797581945,0.3954,4403.4,4403.3,3.2078]
[1756797582147,0.3954,4403.4,4402.3,3.6994]
[1756797582148,0.3954,4402.4,4402.3,3.6994]
[1756797582344,0.283,4402.3,4402.2,0.641]
[1756797582542,0.6784,4402.3,4402.2,0.9304]
[1756797582738,0.6784,4402.3,4402.2,1.71775903]
[1756797583544,0.6784,4402.3,4402.2,0.6994]
[1756797583745,0.86508794,4402.3,4402.2,0.231]
[1756797584246,0.283,4402.6,4402.3,0.2894]
[1756797584451,0.6784,4402.6,4402.5,0.6994]
[1756797584646,0.58207651,4402.6,4402.5,0.231]
[1756797584946,0.86507651,4402.6,4402.5,0.231]
[1756797585945,0.5820799,4402.6,4402.5,0.231]
[1756797586252,0.5820799,4402.6,4401.9,41.58735903]
[1756797586253,0.5820799,4402.6,4402.0,0.2894]
[1756797586453,0.3954,4402.3,4402.2,0.4916]
[1756797586653,0.6784,4402.3,4402.2,0.7226]
[1756797587250,0.283,4402.2,4402.0,0.2894]
[1756797587449,0.3954,4402.1,4402.0,0.2894]
[1756797587651,0.6784,4402.1,4402.0,0.5204]
[1756797588053,1.46575903,4402.1,4402.0,0.5204]
[1756797588852,1.65240501,4402.1,4401.2,3.2078]
[1756797589056,1.46575903,4401.4,4401.3,0.7226]
[1756797590657,1.46575903,4401.4,4401.3,0.231]
[1756797592060,0.283,4401.3,4400.8,32.9964]
[1756797592256,1.46575903,4401.1,4401.0,0.4916]
[1756797592755,1.46575903,4401.1,4401.0,0.7226]
[1756797593460,1.46575903,4401.1,4400.8,73.507]
[1756797593461,0.283,4401.0,4400.8,73.7964]
[1756797593655,0.6784,4401.0,4400.9,0.231]
[1756797593861,0.6784,4401.0,4400.9,0.5204]
[1756797594356,0.6784,4401.0,4400.9,0.7226]
[1756797594562,0.6784,4401.0,4400.9,0.9304]
[1756797595166,0.6784,4401.0,4400.9,0.4916]
[1756797595366,0.6784,4401.0,4400.9,0.231]
[1756797595771,0.6784,4401.0,4400.9,0.5204]
[1756797595972,0.6784,4401.0,4400.9,0.7226]
[1756797596766,0.6784,4401.0,4400.9,0.231]
[1756797596966,0.6784,4400.8,4400.7,0.2894]
[1756797597168,0.3954,4400.2,4400.1,0.4916]
[1756797597360,0.6784,4400.2,4400.1,0.7226]
[1756797597765,0.6784,4400.2,4400.1,0.9304]
[1756797598369,0.6784,4400.2,4400.1,0.7226]
[1756797598571,0.283,4400.1,4400.0,3.2078]
[1756797598774,1.46575903,4400.1,4400.0,3.4388]
[1756797598965,1.46575903,4400.1,4400.0,3.2078]
[1756797599474,1.46575903,4400.1,4399.9,0.231]
[1756797599672,1.46575903,4400.1,4399.8,0.2894]
[1756797599673,0.6784,4400.1,4399.8,0.2894]
[1756797599867,0.6784,4399.9,4399.8,0.4916]
[1756797600061,0.6784,4399.9,4399.8,0.7226]
[1756797600866,0.6784,4399.2,4399.1,0.4916]
[1756797601070,1.46575903,4399.2,4399.1,0.4916]
[1756797601268,1.46575903,4399.2,4399.1,0.6994]
[1756797601575,0.283,4399.5,4399.2,0.2894]
[1756797601772,0.6784,4399.5,4399.4,0.6994]
[1756797602365,3.2078,4399.6,4399.4,0.41]
[1756797602572,0.283,4400.3,4400.0,0.6994]
[1756797602771,0.2046,4400.3,4400.2,0.6994]
[1756797602971,0.2046,4400.3,4400.2,0.9304]
[1756797604273,0.6784,4400.3,4400.2,0.9304]
[1756797604773,0.6784,4400.3,4400.2,0.231]
[1756797607281,0.6784,4400.3,4398.8,40.8]
[1756797607282,0.1141,4399.5,4398.8,40.8]
[1756797607478,0.4876,4398.9,4398.8,40.8]
[1756797607681,0.283,4398.9,4398.8,41.113]
[1756797609379,0.283,4398.9,4398.8,41.031]
[1756797609579,0.283,4398.9,4398.8,41.113]
[1756797609880,0.283,4398.9,4398.8,41.031]
[1756797610779,0.283,4398.9,4398.8,41.113]
[1756797611082,0.2046,4399.5,4399.4,0.2624]
[1756797611277,0.7197,4399.5,4398.8,40.882]
[1756797611482,0.5066,4399.0,4398.9,0.4938]
[1756797611875,0.3085,4399.0,4398.9,0.5759]
[1756797612272,0.3085,4399.0,4398.9,0.4938]
[1756797612273,0.7132,4399.0,4398.9,0.4938]
[1756797612583,0.8265,4399.0,4398.9,0.4938]
[1756797613776,0.518,4399.0,4398.1,3.2899]
[1756797613977,0.3085,4398.8,4398.7,0.1314]
[1756797614282,0.5066,4398.8,4398.7,0.4938]
[1756797614482,0.7132,4398.8,4398.7,0.4938]
[1756797614876,0.5066,4398.8,4398.7,0.4938]
[1756797615276,0.7132,4398.8,4398.7,0.4938]
[1756797616678,0.5066,4398.8,4398.7,0.5759]
[1756797617183,0.3085,4398.8,4398.7,0.5759]
[1756797617978,0.7132,4398.8,4398.6,3.2078]
[1756797618179,0.7132,4398.7,4398.6,3.2078]
[1756797618477,0.7132,4398.7,4398.6,3.4388]
[1756797618673,0.7132,4398.7,4398.6,3.5702]
[1756797619387,0.7132,4398.7,4398.6,0.231]
[1756797620084,0.7132,4398.7,4398.6,0.3624]
[1756797622980,0.4047,4398.2,4398.1,44.0078]
[1756797623179,0.7132,4398.1,4398.0,0.3624]
[1756797623675,0.7132,4398.1,4398.0,0.231]
[1756797624074,0.89806568,4398.1,4398.0,0.231]
[1756797624276,0.89807449,4398.1,4398.0,0.231]
[1756797624474,0.4047,4397.7,4397.6,3.2078]
[1756797624677,0.7132,4397.1,4397.0,3.2078]
[1756797624889,0.7132,4397.1,4397.0,3.4388]
[1756797625183,0.1133,4396.5,4396.4,44.0078]
[1756797625481,0.4218,4396.5,4396.4,44.2388]
[1756797625682,1.80876864,4396.5,4396.4,3.2078]
[1756797626080,1.80876864,4396.5,4396.4,3.4388]
[1756797626283,1.80876864,4396.5,4396.4,3.5697]
[1756797626587,0.8265,4396.5,4396.4,3.5697]
[1756797627584,0.4047,4396.3,4396.2,0.231]
[1756797627886,0.7132,4396.3,4396.2,0.3619]
[1756797628187,0.7132,4396.3,4396.2,0.231]
[1756797629080,0.7132,4396.3,4396.2,0.4928]
[1756797629081,0.5066,4396.3,4396.2,0.4928]
[1756797629282,0.3085,4396.3,4396.2,0.5746]
[1756797630882,0.5066,4396.3,4396.2,0.4928]
[1756797631186,0.3085,4396.3,4396.2,0.5746]
[1756797634591,0.5066,4396.3,4396.2,0.4928]
[1756797635186,0.7132,4396.3,4396.2,0.4928]
[1756797637292,0.7132,4396.3,4396.2,0.231]
[1756797637792,0.7132,4396.3,4396.2,0.3619]
[1756797639186,0.7132,4396.3,4396.2,0.231]
[1756797639790,0.7132,4396.3,4396.2,0.3619]
[1756797640393,0.7132,4396.3,4396.2,0.231]
[1756797640588,0.7132,4396.3,4396.2,0.3619]
[1756797642993,0.5066,4396.3,4396.2,3.7837]
[1756797643187,0.3085,4396.3,4396.2,3.7837]
[1756797643585,0.3161,4397.0,4396.9,0.2634]
[1756797643789,0.3161,4397.0,4396.9,0.4954]
[1756797643790,0.513,4397.0,4396.9,0.4954]
[1756797644189,0.8216,4397.0,4396.9,0.4954]
[1756797644494,0.7083,4397.0,4396.9,0.4954]
[1756797644694,0.5114,4397.0,4396.9,0.4954]
[1756797645091,0.7083,4397.0,4396.9,0.4954]
[1756797645894,0.3997,4396.3,4396.2,0.1317]
[1756797646197,0.7083,4396.3,4396.2,3.3395]
[1756797646698,0.5114,4396.3,4396.2,3.7032]
[1756797647391,0.7083,4396.3,4396.2,3.7032]
[1756797647894,0.3086,4396.3,4396.2,3.7032]
[1756797648199,0.3086,4396.9,4396.2,3.7855]
[1756797648394,0.1207,4397.0,4396.2,3.7855]
[1756797648695,0.3086,4396.9,4396.2,3.7855]
[1756797648899,0.2028,4396.3,4396.2,3.7032]
[1756797649202,0.5114,4396.3,4396.2,3.7032]
[1756797649398,0.7083,4396.3,4396.2,3.4712]
[1756797649695,0.7083,4396.3,4396.2,3.7032]
[1756797650589,0.7083,4396.3,4396.2,3.3395]
[1756797650795,1.69190446,4396.3,4396.2,3.4398]
[1756797651897,1.87826935,4396.3,4396.2,3.4398]
[1756797653997,0.89466489,4396.3,4396.2,3.4398]
[1756797654299,1.87826935,4396.3,4396.2,3.4398]
[1756797656494,0.89466489,4396.3,4396.2,3.4398]
[1756797656999,0.89466489,4396.3,4396.2,3.7032]
[1756797657198,0.49496489,4396.3,4396.2,3.7855]
[1756797659193,0.49577074,4396.3,4396.2,3.7855]
[1756797661005,0.18717074,4396.3,4396.2,7.7855]
[1756797661397,0.18717074,4396.3,4396.2,8.01297]
[1756797661598,0.3086,4397.0,4396.2,8.80201447]
[1756797661799,0.19455678,4396.9,4396.3,0.0823]
[1756797661999,0.3086,4397.1,4396.8,0.3457]
[1756797662202,0.50323001,4397.0,4396.9,0.5777]
[1756797662403,0.50323001,4397.0,4396.9,0.4954]
[1756797662404,0.70603001,4397.0,4396.9,0.4954]
[1756797663000,0.90293001,4397.0,4396.9,0.4954]
[1756797663205,1.02363001,4397.0,4396.9,0.4954]
[1756797663502,0.1207,4396.5,4396.3,3.2078]
[1756797663707,1.69443714,4396.4,4396.3,0.1317]
[1756797663900,1.69443714,4396.4,4396.3,0.3637]
[1756797664106,0.2028,4395.9,4395.8,44.0078]
[1756797664305,1.30044447,4395.9,4395.8,44.2398]
[1756797664807,1.30044447,4395.9,4395.2,1.59262841]
[1756797664808,1.69445311,4395.9,4395.2,1.59262841]
[1756797665004,1.49734447,4395.4,4395.3,0.3637]
[1756797665193,1.69445311,4395.4,4395.3,41.1637]
[1756797665401,0.90540864,4395.4,4395.3,41.1637]
[1756797665703,0.90540864,4395.4,4395.3,0.4954]
[1756797665908,0.50570864,4395.4,4395.3,0.5777]
[1756797666204,0.50570864,4395.4,4395.3,41.3777]
[1756797666407,0.50570864,4395.4,4395.3,41.2954]
[1756797667104,1.29475311,4395.4,4395.3,40.8]
[1756797667311,1.29461251,4395.4,4395.3,41.032]
[1756797668495,1.09764447,4395.4,4395.3,41.032]
[1756797668699,1.29454828,4395.4,4395.3,41.032]
[1756797668903,1.69424828,4395.4,4395.3,0.232]
[1756797669101,0.3086,4395.3,4395.2,1.59262841]